Cogmind - Beta 15 @@@ ROGUE MODE // 2025.05.27 @ 17:21:33 Player: Windjigo Result: Destroyed by G-67 Veteran with Field Laser Performance ------------- Evolutions (7) 3500 Regions Visited (13) 2600 Robots Destroyed (205) 1025 Value Destroyed (7646) 7646 Prototype IDs (41) 820 Alien Tech Used (0) 0 Bonus (351) 351 TOTAL SCORE: 15942 Bonus ------- High Alert Combat Kills 44 Follower Combat Kills 7 Aligned with FarCom 300 Cogmind --------- Core Integrity 0/1300 Matter 300/300 Energy 63/100 System Corruption 8% Temperature Cool (9) Movement Core (50) Location -3/Research Parts ------- > --- POWER (2) -------- (None) > --- PROPULSION (4) --- (None) > --- UTILITY (11) ----- Advanced Melee Analysis Suite > --- WEAPON (4) ------- (None) > --- INVENTORY (5) ---- Advanced Thermal Defense Suite Improved Plasma Cutter Peak State ------------ > --- POWER ------------ Particle Reactor Light Quantum Reactor > --- PROPULSION ------- Armored Huge Wheel Centrium Wheel High-density Centrium Wheel > --- UTILITY ---------- High-capacity Storage Unit Advanced Melee Analysis Suite Advanced Target Analyzer Core Analyzer Improved Actuator Array Advanced Actuator Array Improved Force Booster Layered Heavy Armor Plating Advanced Shield Generator Advanced Hacking Suite > --- WEAPON ----------- Plasma Sword Vibroblade Centrium Greatsword > --- INVENTORY -------- Micro Fission Core Light Antimatter Reactor Micro Antimatter Reactor Advanced Coolant Injector Improved Target Analyzer Layered Heavy Armor Plating Advanced Thermal Defense Suite Heavy Shock Bomb Launcher Improved Plasma Cutter Thunder Hammer Thunder Hammer Centrium Greatsword Centrium Greatsword Centrium Greatsword Force Lance Force Lance [Rating: 146] Favorites ----------- Power Heavy Deuterium Engine Engine Heavy Deuterium Engine Power Core Enhanced Nuclear Core Reactor Antimatter Reactor Propulsion Wheel Treads Armored Treads Leg Carbon-fiber Leg Wheel Wheel Utility Large Storage Unit Device Microactuators Storage Large Storage Unit Processor Core Analyzer Hackware Advanced Hacking Suite Protection Improved Medium Armor Plating Weapon Thunder Hammer Energy Gun Cooled Pulse Rifle Energy Cannon Cooled Particle Cannon Ballistic Gun Improved Assault Rifle Launcher Heavy Shock Bomb Launcher Special Weapon Mining Laser Impact Weapon Thunder Hammer Slashing Weapon Plasma Sword Piercing Weapon Force Lance Build | -11 -10 -9 -9 -9 -8 -8 -7 -7 -7 -6 -5 -4 -3 ------- Run | Yrd Mat Mat Min Exi Min Mat Fac Was Fac Fac Fac Fac Res Slots Evolved 14 | . . 2 . . . 2 2 . . 2 2 2 2 Power 1 | . . . . . . . . . . . . 1 . Propulsion 2 | . . . . . . . 1 . . . . . 1 Utility 9 | . . 2 . . . 2 . . . 2 1 1 1 Weapon 2 | . . . . . . . 1 . . . 1 . . Parts Attached 181 | 9 1 18 9 1 2 11 19 3 26 8 18 31 25 Power 24 | 1 1 3 4 . . 1 1 2 2 . . 5 4 Engine 13 | 1 1 3 4 . . 1 1 1 1 . . . . Core 5 | . . . . . . . . 1 1 . . 2 1 Reactor 6 | . . . . . . . . . . . . 3 3 Propulsion 35 | 3 . 4 3 . . 2 6 . 5 . 2 4 6 Treads 3 | . . . . . . 2 . . 1 . . . . Leg 5 | . . . . . . . 3 . . . . . 2 Wheel 27 | 3 . 4 3 . . . 3 . 4 . 2 4 4 Hover . | . . . . . . . . . . . . . . Flight . | . . . . . . . . . . . . . . Utility 78 | 3 . 5 1 . 2 4 8 1 14 4 12 15 9 Device 32 | 2 . 2 . . 1 2 4 1 2 2 5 7 4 Storage 4 | 1 . 1 . . . . . . 1 . . 1 . Processor 24 | . . 2 1 . 1 1 2 . 6 2 4 1 4 Hackware 5 | . . . . . . . 1 . 2 . 1 1 . Protection 13 | . . . . . . 1 1 . 3 . 2 5 1 Artifact . | . . . . . . . . . . . . . . Weapon 44 | 2 . 6 1 1 . 4 4 . 5 4 4 7 6 Energy Gun 7 | 1 . 1 1 . . . 1 . 3 . . . . Energy Cannon 2 | . . . . 1 . . 1 . . . . . . Ballistic Gun 5 | 1 . 1 . . . 2 . . 1 . . . . Ballistic Cannon . | . . . . . . . . . . . . . . Launcher 1 | . . . . . . . . . . . . . 1 Special Weapon 3 | . . 1 . . . . . . . 1 1 . . Impact Weapon 11 | . . 3 . . . . 1 . 1 2 . 4 . Slashing Weapon 11 | . . . . . . 2 1 . . . 2 2 4 Piercing Weapon 4 | . . . . . . . . . . 1 1 1 1 Special Melee Weapon . | . . . . . . . . . . . . . . Unidentified Prototypes 18 | . . 3 . . . . 2 . 3 . 3 5 2 Parts Lost 67 | . . 5 3 . 1 9 . 6 . . . 11 32 Power 9 | . . 1 1 . . . . 1 . . . 1 5 Propulsion 20 | . . 3 2 . 1 1 . 2 . . . 3 8 Utility 23 | . . 1 . . . 6 . 1 . . . 6 9 Weapon 15 | . . . . . . 2 . 2 . . . 1 10 Highest Loss Streak 32 | . . 3 3 . 1 4 . 6 . . . 8 32 To Critical Strikes . | . . . . . . . . . . . . . . Average Backups 12 | 3 7 12 14 14 13 8 7 5 12 13 13 15 14 Power 1 | . 1 . . 1 1 1 1 1 1 2 1 . 2 Propulsion 2 | 1 3 5 5 6 4 2 1 . 2 1 1 2 . Utility 3 | . . 2 1 1 1 1 . . 3 4 3 6 3 Weapon 4 | . 2 5 6 6 5 2 3 3 3 4 5 3 6 Tool/Special . | . . . . . . . . . . . . . . Unused Backups 53 | . 1 2 7 1 2 8 1 1 11 3 3 10 3 Power 4 | . . . 2 . . 1 . . 1 . . . . Propulsion 8 | . 1 . . . 1 1 1 . 4 . . . . Utility 13 | . . 1 . . . 2 . . 1 2 1 6 . Weapon 25 | . . 1 5 1 1 4 . . 4 1 2 3 3 Tool/Special 3 | . . . . . . . . 1 1 . . 1 . Average Slot Usage (%) 90 | . 100 89 96 92 87 82 97 49 90 92 88 93 82 Engine 5 | . 14 9 10 11 11 9 7 5 6 6 4 1 . Reactor 2 | . . . . . . . . . . . . 5 8 Wheel 14 | . 28 21 21 22 21 12 17 2 14 13 11 9 12 Device 12 | . 14 14 11 11 11 8 16 8 6 12 13 13 17 Storage 6 | . 14 11 11 11 11 6 7 2 6 6 5 5 3 Processor 17 | . . 10 19 22 22 19 12 2 17 20 20 20 14 Hackware 3 | . . . . . . . 4 3 4 6 5 6 3 Protection 3 | . . . . . . 7 2 2 6 6 5 4 3 Energy Gun 2 | . 14 2 8 3 . . . . 12 . . . . Energy Cannon 2 | . . . . 7 11 3 . . 6 . . . . Ballistic Gun 1 | . 14 2 8 3 . 3 . . 2 . . . . Impact Weapon 5 | . . 16 5 . . . 4 2 . 12 10 9 1 Slashing Weapon 5 | . . . . . . 6 18 7 . . 4 5 12 Piercing Weapon 1 | . . . . . . . . . . 5 1 4 . Peak Build Rating 146 | 7 7 16 18 32 34 40 45 45 50 59 85 121 146 Average Rating 62 | 5 7 13 16 27 33 27 35 20 44 57 74 103 130 On Entrance 35 | . 7 7 15 18 32 34 18 45 6 50 58 84 121 Naked Turns 15 | . . . . . . . . 15 . . . . . Heaviest Build 131 | 13 15 33 37 49 50 56 32 32 57 59 59 121 131 Greatest Support 56 | 26 20 20 26 26 26 40 48 48 38 38 40 44 56 Greatest Overweight (x) 18 | 2 . 3 2 2 1 2 1 . 4 1 1 8 18 Average Overweight (x) 1 | . . 1 1 1 1 . . . 1 1 1 1 2 Largest Inventory Capacity 20 | 8 8 15 15 15 15 15 8 8 15 15 15 20 20 Average Capacity 14 | 7 8 14 15 15 15 9 8 5 14 15 15 17 19 Most Carried 20 | 7 8 15 15 15 15 15 8 8 15 15 15 20 20 Average Carried 13 | 4 7 12 14 15 14 9 7 5 12 14 14 17 17 Final Capacity 20 | 8 8 15 15 15 15 8 8 5 15 15 15 20 5 Final Carried 15 | 6 8 15 15 15 14 8 8 4 15 15 15 14 2 Class Distribution -------------------- 46% | Gladiator 32% | Mutant 7% | Gunner 5% | Hacker-Gladiator 4% | Skirmisher Dominant Class ---------------- Mutant | -10/Materials Mutant | -9/Materials Mutant | -9/Mines Mutant | -9/Exiles Mutant | -8/Mines Mutant | -8/Materials Gladiator | -7/Factory Mutant | -7/Waste Gunner | -7/Factory Gladiator | -6/Factory Gladiator | -5/Factory Gladiator | -4/Factory Gladiator | -3/Research Resources | -11 -10 -9 -9 -9 -8 -8 -7 -7 -7 -6 -5 -4 -3 ----------- Run | Yrd Mat Mat Min Exi Min Mat Fac Was Fac Fac Fac Fac Res Matter Collected 2971 | 335 34 215 168 . 45 153 333 . 388 112 313 538 337 Remotely . | . . . . . . . . . . . . . . Salvage Created 8871 | 171 73 460 727 . 82 618 668 . 1109 134 1113 2204 1512 Parts 419 | 13 7 10 36 . 26 29 25 . 49 4 49 99 72 Haulers Intercepted 8 | . . 1 . . . . 1 . 2 . 2 1 1 Recyclers Shooed 1 | . . . . . . . . . . . . . 1 Parts Field Recycled . | . . . . . . . . . . . . . . Retrieved Matter . | . . . . . . . . . . . . . . Parts Self-Destructed . | . . . . . . . . . . . . . . Prevented . | . . . . . . . . . . . . . . Kills | -11 -10 -9 -9 -9 -8 -8 -7 -7 -7 -6 -5 -4 -3 ------- Run | Yrd Mat Mat Min Exi Min Mat Fac Was Fac Fac Fac Fac Res Combat Hostiles Destroyed 145 | . 2 7 21 . 13 11 9 . 12 4 17 31 18 Melee 79 | . . 3 4 . . 1 5 . . 4 16 28 18 Guns 22 | . 2 . 12 . . 3 . . 5 . . . . Cannons 13 | . . . . . 3 5 . . 5 . . . . AOE 12 | . . . . . 10 2 . . . . . . . Classes Destroyed 16 | 2 1 7 1 . . 1 1 . 2 . . . 1 Worker 15 | . . 3 1 . 1 . 3 . 2 . 1 3 1 Builder 2 | . . . . . . . . . 1 . . . 1 Tunneler 10 | 5 . . 2 . 1 . . . . . 1 1 . Hauler 8 | . . 1 . . . . 1 . 2 . 2 1 1 Recycler 13 | 1 . 2 2 . . 1 1 . 3 . 1 . 2 Mechanic 1 | . . 1 . . . . . . . . . . . Operator 2 | . . . . . . 1 . . 1 . . . . Watcher 9 | . . 1 . . . 4 1 . . . 1 2 . Swarmer 43 | . . 3 13 . 13 . . . . 3 8 . 3 Grunt 40 | . 2 2 7 . . 6 6 . . . . 9 8 Brawler 1 | . . . 1 . . . . . . . . . . Duelist 4 | . . 1 . . . 2 . . . . . 1 . Sentry 18 | . . 1 . . . 3 2 . 5 1 2 4 . Hunter 8 | . . . . . . . . . 1 . 1 6 . Programmer 29 | . . . . . . . 1 . 5 . 6 11 6 Behemoth 1 | . . . . . . . . . . . . . 1 Thug 1 | . . . . . . . . . 1 . . . . Best Kill Streak 11 | 2 1 3 7 . 11 7 4 . 4 3 5 5 6 Combat Bots Only 9 | . 1 5 7 . 9 3 3 . 4 3 5 5 6 Max Kills in Single Turn 4 | 1 1 1 2 . 4 3 1 . 2 1 1 1 1 Gunslinging 1 | . . . 1 . . . . . . . . . . Exploded 3 | . . . . . 3 2 . . . . . . . Melee 1 | . . 1 1 . . 1 1 . . 1 1 1 1 Uniques/NPCs Destroyed . | . . . . . . . . . . . . . . Combat | -11 -10 -9 -9 -9 -8 -8 -7 -7 -7 -6 -5 -4 -3 -------- Run | Yrd Mat Mat Min Exi Min Mat Fac Was Fac Fac Fac Fac Res Hostile Shots Fired 1284 | . 6 67 70 . 17 75 32 5 147 27 90 325 423 Missed 381 | . 1 20 18 . 9 20 8 . 57 12 22 96 118 Hits 903 | . 5 47 52 . 8 55 24 5 90 15 68 229 305 Melee 10 | . . . 1 . . 2 . 5 . . . 1 1 Projectile 893 | . 5 47 51 . 8 53 24 . 90 15 68 228 304 AOE 1 | . . . . . . . . . . . . 1 . Critical Strikes 44 | . . 1 . . . 1 . 1 1 . 1 12 27 Damage Taken 13858 | . 100 431 538 . 199 1113 266 234 867 143 830 3466 5671 Core 2758 | . 32 124 126 . 43 201 18 105 150 . 90 559 1310 Absorbed by Shields 2196 | . . . . . . . . . 4 56 396 1285 455 Ignored by Resistances 15 | . . . . . . . . . 15 . . . . Regen/Repaired (Parts) 644 | . . 67 . . . . . . . . 319 258 . Core Remaining (%) 66 | 100 87 . . . 26 16 . . 61 100 91 51 . Volleys Fired 123 | 15 8 1 16 . 8 34 . . 40 . . . 1 Largest 3 | 2 2 1 2 . 1 2 . . 3 . . . 1 Hottest 138 | 60 60 100 79 . 100 100 . . 138 . . . 46 Shots Fired 233 | 30 16 1 29 . 8 39 . . 109 . . . 1 Gun 171 | 30 16 . 29 . . 27 . . 69 . . . . Cannon 60 | . . . . . 8 12 . . 40 . . . . Launcher 1 | . . . . . . . . . . . . . 1 Special 1 | . . 1 . . . . . . . . . . . Kinetic 75 | 15 8 . 16 . . 27 . . 9 . . . . Thermal 134 | . . 1 13 . 8 12 . . 100 . . . . Explosive . | . . . . . . . . . . . . . . Electromagnetic 24 | 15 8 . . . . . . . . . . . 1 Robot Hit Streak 31 | 6 5 . 11 . 3 10 . . 31 . . . 6 Robot Miss Streak 4 | 4 3 . 2 . 1 2 . . 3 . . . . Penetration Max . | . . . . . . . . . . . . . . Secondary Targets 5 | . . . 5 . . . . . . . . . . Max Gunslinging Chain 1 | . . . 1 . . . . . . . . . . Shots Hit Robots 466 | 15 10 33 39 . 3 28 23 . 84 9 44 111 67 Core Hits 210 | 7 4 5 22 . 12 22 8 . 34 3 22 49 22 Critical Kills 9 | . . 1 1 . . . 1 . 1 1 . 3 1 Critical Parts Destroyed 26 | . . 5 2 . . 1 6 . . 1 3 7 1 Critical Strikes 66 | . . 6 5 . . 1 9 . 3 2 8 20 12 Burn 4 | . . . 2 . . . . . 2 . . . . Meltdown 1 | . . . . . . . . . 1 . . . . Destroy 1 | . . . . . . 1 . . . . . . . Smash 35 | . . 6 3 . . . 7 . . 2 4 11 2 Sever 19 | . . . . . . . 2 . . . 4 3 10 Impale 6 | . . . . . . . . . . . . 6 . Melee Attacks 479 | . . 53 33 . . 1 35 . . 14 66 174 103 Impact 220 | . . 53 33 . . . 14 . . 13 24 74 9 Slashing 186 | . . . . . . 1 21 . . . 41 34 89 Piercing 73 | . . . . . . . . . . 1 1 66 5 Sneak Attacks 39 | . . 8 3 . . . 5 . . 1 6 8 8 Combat Hostiles 5 | . . . . . . . . . . 1 1 . 3 Follow-up Attacks 108 | . . 10 4 . . . 3 . . 2 10 46 33 Damage Inflicted 23267 | 255 127 1884 1265 . 1171 1811 1036 . 2082 423 2530 5473 5210 Guns 2304 | 197 127 . 368 . . 340 . . 1272 . . . . Cannons 2014 | . . . . . 399 805 . . 810 . . . . Explosions 1596 | 58 . . . . 772 633 . . . . . . 133 Melee 17353 | . . 1884 897 . . 33 1036 . . 423 2530 5473 5077 Ramming . | . . . . . . . . . . . . . . Kinetic 800 | 59 88 . 199 . . 340 . . 114 . . . . Thermal 4804 | 58 . . 169 . 1171 1438 . . 1968 . . . . Explosive . | . . . . . . . . . . . . . . Electromagnetic 310 | 138 39 . . . . . . . . . . . 133 Impact 7018 | . . 1884 897 . . . 498 . . 393 480 2500 366 Slashing 8033 | . . . . . . 33 538 . . . 2006 1025 4431 Piercing 2302 | . . . . . . . . . . 30 44 1948 280 Highest Corruption 12 | . 1 . . . . . 1 1 4 . 11 12 8 Average Corruption 4 | . 1 . . . . . 1 1 2 . 7 6 5 Corruption Purged . | . . . . . . . . . . . . . . Corruption Blocked . | . . . . . . . . . . . . . . Effects 134 | . . . . . . . 3 2 24 . 24 57 24 Message Errors 35 | . . . . . . . . . 8 . 6 15 6 Matter Fused 33 | . . . . . . . 1 1 8 . 5 10 8 Heat Flow Errors 19 | . . . . . . . . . 2 . 3 10 4 Energy Discharges 21 | . . . . . . . 1 . 2 . 2 12 4 Parts Rejected 2 | . . . . . . . . . . . . 2 . Data Loss (minor) 16 | . . . . . . . 1 1 3 . 4 5 2 Data Loss (major) 6 | . . . . . . . . . . . 3 3 . Alerts 1 | . . . . . . . . . . . 1 . . Weapon Failures 1 | . . . . . . . . . 1 . . . . Overload Shots 3 | . . . . . . . . . 3 . . . . Overflow Damage 3958 | . . 755 179 . 204 264 363 . 42 113 318 953 767 Projectiles 444 | . . . . . 165 237 . . 42 . . . . Explosions 66 | . . . . . 39 27 . . . . . . . Melee 3448 | . . 755 179 . . . 363 . . 113 318 953 767 Knockbacks 26 | . . 5 2 . . . . . . 2 1 15 1 Impact 24 | . . 5 1 . . . . . . 2 1 14 1 Kinetic . | . . . . . . . . . . . . . . Secondary 2 | . . . 1 . . . . . . . . 1 . Self-Inflicted Damage 297 | . . . . . 132 155 . . . . . . 10 Shots 5 | . . . . . 2 2 . . . . . . 1 Rammed . | . . . . . . . . . . . . . . Targets Rammed . | . . . . . . . . . . . . . . Kicked . | . . . . . . . . . . . . . . Crushed . | . . . . . . . . . . . . . . Highest Temperature 361 | 20 24 . . . 4 129 . . 244 . 156 360 361 Average Temperature 69 | 20 14 . . . 4 37 . . 46 . 68 101 109 Received Heat Transfer 2902 | . 30 141 159 . . 387 90 . 243 8 17 384 1443 Effects 1 | . . . . . . . . . . . . 1 . Shutdowns 1 | . . . . . . . . . . . . 1 . Siege Activations . | . . . . . . . . . . . . . . Martial Activations . | . . . . . . . . . . . . . . Shielding Activations . | . . . . . . . . . . . . . . Robots Disrupted . | . . . . . . . . . . . . . . Combat Hostiles . | . . . . . . . . . . . . . . Robots Corrupted 25 | . . 8 5 . . . 5 . . . 1 6 . Combat Hostiles 17 | . . 4 5 . . . 4 . . . 1 3 . Parts Fried 31 | . . 9 6 . . . 4 . . . 1 11 . Impact Corruptions 80 | . . 25 9 . . . 9 . . 3 8 24 2 Robots Melted 3 | . . . . . . . . . 3 . . . . Combat Hostiles 2 | . . . . . . . . . 2 . . . . Parts Melted 19 | . . . 2 . 2 1 . . 14 . . . . Heat Transferred 6531 | 100 . . 518 . 1200 1360 . . 3353 . . . . Parts Sabotaged 4 | . . . . . . . . . . . . . 4 Parts Stolen . | . . . . . . . . . . . . . . Parts Stripped . | . . . . . . . . . . . . . . Power Chain Reactions 1 | 1 . . . . . . . . . . . . . Alert | -11 -10 -9 -9 -9 -8 -8 -7 -7 -7 -6 -5 -4 -3 ------- Run | Yrd Mat Mat Min Exi Min Mat Fac Was Fac Fac Fac Fac Res Maximum Alert Level 2 | . . . 1 . 1 2 . . . . 1 1 1 Low Security (%) 84 | 100 100 100 94 . 74 24 100 100 100 100 88 67 93 Level 1 13 | . . . 5 . 25 29 . . . . 11 32 6 Level 2 2 | . . . . . . 46 . . . . . . . Level 3 . | . . . . . . . . . . . . . . Level 4 . | . . . . . . . . . . . . . . Level 5 . | . . . . . . . . . . . . . . High Security . | . . . . . . . . . . . . . . Max Security . | . . . . . . . . . . . . . . Peak Influence 445 | 5 30 80 222 . 312 445 147 32 142 98 234 274 237 Initial 147 | . 3 8 . . . 2 147 32 . . . 81 143 Average 95 | 1 10 28 100 . 131 315 39 6 31 24 124 143 59 Influence Increases 4886 | 30 65 268 543 . 382 669 284 . 426 138 521 948 612 Destroy 0b10 Robot/C 2920 | . 40 140 440 . 260 220 180 . 240 80 340 620 360 Destroy 0b10 Robot/NC 300 | 30 . 40 25 . 10 30 30 . 45 . 30 35 25 Destroy Leader 714 | . 20 34 70 . 40 58 54 . 114 20 86 156 62 Allied During Kill 8 | . . . 8 . . . . . . . . . . Successful Hack 75 | . 5 9 . . . . 5 . 26 8 8 14 . Disable Machine 90 | . . 15 . . . 45 . . . 15 . 15 . Anti-Garrison Action 300 | . . . . . . 150 . . . . . . 150 Destroy Structure 209 | . . . . . 72 106 . . 1 . 12 18 . Lose Combat Pursuer 270 | . . 30 . . . 60 15 . . 15 45 90 15 Influence Decreases 4803 | 25 50 288 422 121 374 351 517 93 426 138 354 842 802 Entered New Map 597 | . 2 12 . 121 . 6 179 61 . . . 86 130 Time Decay 3443 | 25 48 226 392 . 364 262 338 20 288 138 344 646 352 Lost Part 615 | . . 50 30 . 10 83 . 12 . . . 110 320 Lost Ally 10 | . . . . . . . . . . . 10 . . Purge Threat 138 | . . . . . . . . . 138 . . . . Squads Dispatched 33 | . 2 1 . . . 3 2 . 6 . 3 9 7 Investigation 5 | . 1 . . . . . . . 1 . . 2 1 Extermination 17 | . . . . . . . 1 . 4 . 3 6 3 Reinforcement 4 | . 1 1 . . . . 1 . . . . . 1 Assault 5 | . . . . . . 3 . . . . . . 2 Garrison 2 | . . . . . . . . . 1 . . 1 . Intercept . | . . . . . . . . . . . . . . Searches Triggered . | . . . . . . . . . . . . . . Construction Impeded 1 | . . . . . . . . . . . . . 1 Haulers Reinforced . | . . . . . . . . . . . . . . Active Scanning Responses . | . . . . . . . . . . . . . . Cargo Convoy Interrupts . | . . . . . . . . . . . . . . Stealth | -11 -10 -9 -9 -9 -8 -8 -7 -7 -7 -6 -5 -4 -3 --------- Run | Yrd Mat Mat Min Exi Min Mat Fac Was Fac Fac Fac Fac Res Distress Signals 9 | . . 3 . . . 3 1 . . . 1 1 . Communications Jammed 5 | . . . . . . . 5 . . . . . . Distress Signals 5 | . . . . . . . 5 . . . . . . Times Spotted 219 | . 6 13 22 . 11 22 15 6 16 7 22 44 35 Peak Tracking Total 15 | . 4 6 7 . 6 7 3 6 3 4 5 5 15 Tactical Retreats 17 | . . 2 . . . 4 1 1 . 1 2 5 1 Traps | -11 -10 -9 -9 -9 -8 -8 -7 -7 -7 -6 -5 -4 -3 ------- Run | Yrd Mat Mat Min Exi Min Mat Fac Was Fac Fac Fac Fac Res Traps Triggered 9 | . 2 . . . . . 1 . 3 . 1 2 . Indirectly . | . . . . . . . . . . . . . . Trap Hack Attempts . | . . . . . . . . . . . . . . Triggered . | . . . . . . . . . . . . . . Disarmed . | . . . . . . . . . . . . . . Reprogrammed . | . . . . . . . . . . . . . . Reused . | . . . . . . . . . . . . . . Traps Extracted . | . . . . . . . . . . . . . . Installed . | . . . . . . . . . . . . . . Triggered . | . . . . . . . . . . . . . . Most Traps Carried 1 | . . . 1 1 1 1 . . . . . . . Machines | -11 -10 -9 -9 -9 -8 -8 -7 -7 -7 -6 -5 -4 -3 ---------- Run | Yrd Mat Mat Min Exi Min Mat Fac Was Fac Fac Fac Fac Res Machines Disabled 8 | . . 1 . . . 4 . . . 1 . 1 1 Max in Single Turn 1 | . . 1 . . . 1 . . . 1 . 1 1 Garrison Access 4 | . . . . . . 1 . . . 1 . 1 1 Machines Repaired . | . . . . . . . . . . . . . . Machines Dismantled . | . . . . . . . . . . . . . . Machines Sabotaged . | . . . . . . . . . . . . . . Overloaded Fab Kills . | . . . . . . . . . . . . . . Hacking | -11 -10 -9 -9 -9 -8 -8 -7 -7 -7 -6 -5 -4 -3 --------- Run | Yrd Mat Mat Min Exi Min Mat Fac Was Fac Fac Fac Fac Res Machines Accessed 36 | . 2 5 1 2 . . 3 . 7 3 6 6 1 Terminals 21 | . 2 3 1 . . . 2 . 5 2 3 3 . Fabricators . | . . . . . . . . . . . . . . Repair Stations 6 | . . 1 . . . . 1 . . . 2 2 . Recycling Units 3 | . . . . . . . . . 2 . 1 . . Scanalyzers 1 | . . 1 . . . . . . . . . . . Garrison Access 3 | . . . . . . . . . . 1 . 1 1 Total Hacks 104 | . 6 14 1 24 . . 8 . 12 6 16 15 2 Successful 61 | . 2 9 . 24 . . 2 . 4 3 8 9 . Failed 43 | . 4 5 1 . . . 6 . 8 3 8 6 2 Catastrophic 8 | . . . 1 . . . 1 . 3 . 1 1 1 Database Lockouts . | . . . . . . . . . . . . . . Manual 41 | . 4 6 1 1 . . 6 . 9 3 6 4 1 Terminals 49 | . 6 7 1 . . . 6 . 10 4 8 7 . Fabricators . | . . . . . . . . . . . . . . Repair Stations 20 | . . 4 . . . . 2 . . . 7 7 . Recycling Units 3 | . . . . . . . . . 2 . 1 . . Scanalyzers 3 | . . 3 . . . . . . . . . . . Garrison Access 5 | . . . . . . . . . . 2 . 1 2 Terminal Hacks 27 | . . . . 24 . . 1 . 1 . 1 . . Record 23 | . . . . 23 . . . . . . . . . Unreport Threat 1 | . . . . . . . . . 1 . . . . Zone Layout 2 | . . . . . . . 1 . . . 1 . . Proto ID Catalog 1 | . . . . 1 . . . . . . . . . Fabricator Hacks . | . . . . . . . . . . . . . . Repair Station Hacks 16 | . . 4 . . . . 1 . . . 5 6 . Scan Component 9 | . . 2 . . . . 1 . . . 3 3 . Repair 7 | . . 2 . . . . . . . . 2 3 . Recycling Unit Hacks 2 | . . . . . . . . . 1 . 1 . . Retrieve Components 2 | . . . . . . . . . 1 . 1 . . Scanalyzer 3 | . . 3 . . . . . . . . . . . Insert Component 2 | . . 2 . . . . . . . . . . . Analyze 1 | . . 1 . . . . . . . . . . . Garrison Access Hacks 2 | . . . . . . . . . . 1 . 1 . Seal Access 2 | . . . . . . . . . . 1 . 1 . Unauthorized Hacks 11 | . 2 2 . . . . . . 2 2 1 2 . Terminals 11 | . 2 2 . . . . . . 2 2 1 2 . Assimilate 1 | . . . . . . . . . 1 . . . . Botnet 10 | . 2 2 . . . . . . 1 2 1 2 . Fabricators . | . . . . . . . . . . . . . . Repair Stations . | . . . . . . . . . . . . . . Recycling Units . | . . . . . . . . . . . . . . Scanalyzers . | . . . . . . . . . . . . . . Garrison Access . | . . . . . . . . . . . . . . Data Cores Recovered 2 | . . . . . . 1 . . 1 . . . . Used . | . . . . . . . . . . . . . . Hacking Detections 31 | . 2 5 1 . . . 3 . 6 2 6 5 1 Full Trace Events 3 | . 1 . . . . . . . . . . 1 1 Feedback Events . | . . . . . . . . . . . . . . Feedback Blocked . | . . . . . . . . . . . . . . Robot Schematics Acquired . | . . . . . . . . . . . . . . Robots Built . | . . . . . . . . . . . . . . Authchips . | . . . . . . . . . . . . . . Time . | . . . . . . . . . . . . . . Total Robot Build Rating . | . . . . . . . . . . . . . . Part Schematics Acquired 1 | . . 1 . . . . . . . . . . . Parts Built . | . . . . . . . . . . . . . . Authchips . | . . . . . . . . . . . . . . Time . | . . . . . . . . . . . . . . Total Part Build Rating . | . . . . . . . . . . . . . . Parts Repaired 7 | . . 2 . . . . . . . . 2 3 . Time 218 | . . 64 . . . . . . . . 57 97 . Parts Recycled . | . . . . . . . . . . . . . . Recycled Matter . | . . . . . . . . . . . . . . Retrieved Matter . | . . . . . . . . . . . . . . Retrieved Components 13 | . . . . . . . . . 3 . 10 . . Parts Scanalyzed 1 | . . 1 . . . . . . . . . . . Part Schematics Acquired 1 | . . 1 . . . . . . . . . . . Parts Damaged . | . . . . . . . . . . . . . . Bothacking | -11 -10 -9 -9 -9 -8 -8 -7 -7 -7 -6 -5 -4 -3 ------------ Run | Yrd Mat Mat Min Exi Min Mat Fac Was Fac Fac Fac Fac Res Used RIF Installer . | . . . . . . . . . . . . . . Robots Hacked . | . . . . . . . . . . . . . . Non-combat . | . . . . . . . . . . . . . . Combat . | . . . . . . . . . . . . . . Robot Hacks Applied . | . . . . . . . . . . . . . . Relay Couplers Released 5 | . . . . . . 2 . . . . . 3 . Machine Destruction 5 | . . . . . . 2 . . . . . 3 . Fabnet Peak Effective % . | . . . . . . . . . . . . . . Robots Rewired . | . . . . . . . . . . . . . . Allies Hacked . | . . . . . . . . . . . . . . Hacks Repelled . | . . . . . . . . . . . . . . Allies | -11 -10 -9 -9 -9 -8 -8 -7 -7 -7 -6 -5 -4 -3 -------- Run | Yrd Mat Mat Min Exi Min Mat Fac Was Fac Fac Fac Fac Res Total Allies 2 | . . . 1 . . . . . 1 . . . . Largest Group 1 | . . . 1 . . . . . 1 1 1 . . Highest-Rated Group 31 | . . . 31 . . . . . 26 26 26 . . Highest-Rated Ally 31 | . . . 31 . . . . . 26 26 26 . . Total Orders . | . . . . . . . . . . . . . . Ally Attacks 10 | . . . 10 . . . . . . . . . . Total Damage 102 | . . . 102 . . . . . . . . . . Kills 1 | . . . 1 . . . . . . . . . . Allies Corrupted . | . . . . . . . . . . . . . . Allies Melted . | . . . . . . . . . . . . . . Intel | -11 -10 -9 -9 -9 -8 -8 -7 -7 -7 -6 -5 -4 -3 ------- Run | Yrd Mat Mat Min Exi Min Mat Fac Was Fac Fac Fac Fac Res Active Infowar (turns) 2375 | 56 152 377 . . . 495 1237 56 . . 2 . . Optics 886 | . . . . . . 495 391 . . . . . . Sensors 348 | . . 348 . . . . . . . . . . . Seismic 237 | 56 152 29 . . . . . . . . . . . Jamming 1063 | . . . . . . . 1007 56 . . . . . ECM 2 | . . . . . . . . . . . 2 . . Robot Analysis Total . | . . . . . . . . . . . . . . Derelict Logs Recovered 3 | . . . 3 . . . . . . . . . . Drone Launches . | . . . . . . . . . . . . . . Drone Recoveries . | . . . . . . . . . . . . . . Exploration | -11 -10 -9 -9 -9 -8 -8 -7 -7 -7 -6 -5 -4 -3 ------------- Run | Yrd Mat Mat Min Exi Min Mat Fac Was Fac Fac Fac Fac Res Turns Passed 13249 | 152 152 700 929 504 968 574 1237 172 1657 477 1412 2958 1357 Spaces Moved 8737 | 103 152 458 759 479 724 227 919 184 1234 287 1035 1585 591 Core 58 | 25 . . . . . . . 29 . . . . 4 Treads 59 | . . . . . . 59 . . . . . . . Legs 159 | . . . . . . . 101 58 . . . . . Wheels 8461 | 78 152 458 759 479 724 168 818 97 1234 287 1035 1585 587 Hover . | . . . . . . . . . . . . . . Flight . | . . . . . . . . . . . . . . Fastest Speed 50 | 50 80 80 95 95 105 90 80 50 105 105 105 110 50 Average Speed 105 | 81 80 95 95 104 105 121 87 87 105 105 108 119 129 Slowest Speed 950 | 150 80 125 110 110 105 250 190 120 140 105 110 210 950 Overloaded Moves . | . . . . . . . . . . . . . . Propulsion Burnouts . | . . . . . . . . . . . . . . Robots Hopped . | . . . . . . . . . . . . . . Potential Cave-ins . | . . . . . . . . . . . . . . Cave-ins Triggered . | . . . . . . . . . . . . . . Exploration Rate (%) 43 | 4 40 30 95 93 100 27 21 81 30 8 30 38 12 Regions Visited 13 Branch Regions 3 Pre-discovered Areas 1 | . . . . 1 . . . . . . . . . Known Exits Taken 5 | . . 1 1 1 1 1 . . . . . . . Unknown Exits Taken 6 | 1 1 . . . . . . . 1 1 1 1 . Scrap Searched 3 | . . . 2 . 1 . . . . . . . . Spaces Dug 15 | . . . . . . . . . . . 6 9 . Terrain Destroyed 250 | 1 . . . . 108 125 . . 1 . 6 9 . Melee 15 | . . . . . . . . . . . 6 9 . Projectile 10 | . . . . . 5 4 . . 1 . . . . AOE 225 | 1 . . . . 103 121 . . . . . . . Terrain Rammed . | . . . . . . . . . . . . . . Walls Destroyed . | . . . . . . . . . . . . . . Machines Disabled . | . . . . . . . . . . . . . . Actions | -11 -10 -9 -9 -9 -8 -8 -7 -7 -7 -6 -5 -4 -3 --------- Run | Yrd Mat Mat Min Exi Min Mat Fac Was Fac Fac Fac Fac Res Total 12002 | 138 166 655 901 484 909 462 1324 192 1511 442 1268 2491 1059 Wait 2220 | . . 96 60 . 166 164 315 4 143 122 120 688 342 Move 8725 | 102 151 457 758 478 723 226 919 183 1233 286 1034 1584 591 Hop . | . . . . . . . . . . . . . . Pick Up 201 | 11 4 25 14 1 4 14 14 . 38 5 19 35 17 Fast Attach 60 | 3 . 2 . 1 . 5 10 3 7 4 7 15 3 Attach 97 | 4 . 11 5 . 1 5 7 1 11 2 7 18 25 Detach 9 | . . 1 . . . 1 3 . . . 2 . 2 Swap 85 | 2 1 10 7 1 2 5 7 1 12 5 10 15 7 Drop 174 | 1 2 12 14 3 5 7 21 . 27 8 24 38 12 Fire 123 | 15 8 1 16 . 8 34 . . 40 . . . 1 Melee 308 | . . 40 27 . . 1 28 . . 10 45 98 59 Ram . | . . . . . . . . . . . . . . Kick . | . . . . . . . . . . . . . . Crush . | . . . . . . . . . . . . . . Escape Stasis . | . . . . . . . . . . . . . . Rewire . | . . . . . . . . . . . . . . Trap . | . . . . . . . . . . . . . . Miscellaneous . | . . . . . . . . . . . . . . Route ------- -11/Scrapyard -10/Materials (discovered 3 exits: *Mat / [*Min x2]) -9/Materials -9/Mines (discovered 3 exits: *Mat x2 / *Exi) -9/Exiles (discovered 2 exits: *Min x2) -8/Mines (discovered 2 exits: *Mat x2) -8/Materials (discovered 3 exits: *Fac x2 / [*Sto]) -7/Factory -7/Waste -7/Factory -6/Factory -5/Factory -4/Factory -3/Research History --------- Turn | Location | Event 54 | -11/Scrapyard | Discovered new exit (range 12) 153 | -11/Scrapyard | Entered Materials 215 | -10/Materials | Discovered new exit (range 8) 259 | -10/Materials | Discovered new exit (range 6) 276 | -10/Materials | Discovered new exit (range 15) 305 | -10/Materials | Entered another Materials area 305 | -9/Materials | Evolved 2 slots: Utility x2 363 | -9/Materials | Build established: Mutant 603 | -9/Materials | Lost 3 parts (1p2n) 633 | -9/Materials | Discovered new exit (range 16) 770 | -9/Materials | Repaired Heat Sink 809 | -9/Materials | Repaired Hvy. Flail 891 | -9/Materials | Identified exit to Mines 1005 | -9/Materials | Entered Mines 1134 | -9/Mines | Lost 3 parts (1p2n) 1182 | -9/Mines | Received a Mining Laser from a helpful Derelict 1221 | -9/Mines | Core integrity fell below 50% 1323 | -9/Mines | Discovered new exit (range 8) 1328 | -9/Mines | Identified exit to Materials 1366 | -9/Mines | Discovered exit to Materials (range 14) 1408 | -9/Mines | Learned Materials trap positions 1427 | -9/Mines | Received a Rocket Launcher from a helpful Derelict 1477 | -9/Mines | Deemed a non-threat by the Exiles lab entrance 1477 | -9/Mines | Discovered new exit (range 5) 1480 | -9/Mines | Identified exit to Exiles 1576 | -9/Mines | Found a hidden stash of uninstalled traps 1592 | -9/Mines | Destroyed 7 combat bots 1602 | -9/Mines | Learned Materials terminal intel 1643 | -9/Mines | Learned location of 1 exit from Materials 1934 | -9/Mines | Entered Exiles 1953 | -9/Exiles | Discovered new exit (range 15) 1965 | -9/Exiles | Identified exit to Mines 1986 | -9/Exiles | Met 8R-AWN 2001 | -9/Exiles | Met EX-HEX 2029 | -9/Exiles | Met EX-BIN 2039 | -9/Exiles | Aligned with FarCom system 2040 | -9/Exiles | Given EX-Vault access code 2089 | -9/Exiles | Opened EX-Vault 2098 | -9/Exiles | Found YOLO Cannon 2121 | -9/Exiles | Warned to stay clear of 0b10 Research branches 2155 | -9/Exiles | Met EX-DEC 2164 | -9/Exiles | Learned location of Zion (-6) 2221 | -9/Exiles | Visited The Gauntlet 2429 | -9/Exiles | Discovered exit to Mines (range 10) 2438 | -9/Exiles | Left Exiles lab with YOLO Cannon 2438 | -9/Exiles | Entered Mines 2648 | -8/Mines | Discovered exit to Materials (range 13) 2658 | -8/Mines | Destroyed 9 combat bots 3041 | -8/Mines | Discovered exit to Materials (range 3) 3406 | -8/Mines | Entered Materials 3406 | -8/Materials | Evolved 2 slots: Utility x2 3407 | -8/Materials | Identified exit to Factory 3408 | -8/Materials | Loaded intel: 6 trap records 3409 | -8/Materials | Loaded intel: 12 terminal locations 3410 | -8/Materials | Discovered new exit (range 9) 3592 | -8/Materials | YOLO Cannon suddenly exploded 3593 | -8/Materials | Core integrity fell below 50% 3623 | -8/Materials | Lost 4 parts (1n2u1w) 3730 | -8/Materials | Discovered exit to Factory (range 20) 3806 | -8/Materials | First assault squad dispatched 3980 | -8/Materials | Entered Factory 3980 | -7/Factory | Evolved 2 slots: Propulsion x1, Weapon x1 4364 | -7/Factory | Build established: Scavenger-Mutant 4673 | -7/Factory | Build established: Gladiator 5217 | -7/Factory | Sucked down chute 5217 | -7/Factory | Entered Waste 5225 | -7/Waste | Spotted C-40 Crusher 5240 | -7/Waste | Spotted C-40 Crusher 5243 | -7/Waste | Spotted C-40 Crusher 5255 | -7/Waste | Spotted C-40 Crusher 5264 | -7/Waste | Crushed by Compactor (1 part destroyed, 2 dropped) 5267 | -7/Waste | Crushed by Compactor (1 part destroyed, 2 dropped) 5268 | -7/Waste | Spotted C-40 Crusher 5289 | -7/Waste | Crushed by Compactor (1 part destroyed, 2 dropped) 5293 | -7/Waste | Crushed by Compactor (1 part destroyed, 1 dropped) 5294 | -7/Waste | Crushed by Compactor (1 part destroyed, 2 dropped) 5305 | -7/Waste | Discovered new exit (range 13) 5325 | -7/Waste | Lost 6 parts (1p2n1u2w) 5329 | -7/Waste | Spotted C-40 Crusher 5389 | -7/Waste | Entered Factory 5696 | -7/Factory | Build established: Gunner 6035 | -7/Factory | Garrison activated, responded to threat 6147 | -7/Factory | Allied Derelicts emerged from ambush trap array 6270 | -7/Factory | Build established: Skirmisher 6296 | -7/Factory | P-60 Hacker assimilated allied 3K-XAY(g) 6781 | -7/Factory | Discovered new exit (range 8) 6930 | -7/Factory | Build established: Gunner 7046 | -7/Factory | Entered another Factory area 7046 | -6/Factory | Accompanied by 1 ally 7046 | -6/Factory | Evolved 2 slots: Utility x2 7432 | -6/Factory | Build established: Gladiator 7518 | -6/Factory | Discovered new exit (range 5) 7523 | -6/Factory | Entered another Factory area 7523 | -5/Factory | Accompanied by 1 ally 7523 | -5/Factory | Evolved 2 slots: Utility x1, Weapon x1 7746 | -5/Factory | Repaired Arm. Huge Wheel 8458 | -5/Factory | Repaired Hvy. Deuterium Engine 8619 | -5/Factory | System corruption reached 10% 8678 | -5/Factory | Discovered new exit (range 9) 8935 | -5/Factory | Entered another Factory area 8935 | -4/Factory | Evolved 2 slots: Power x1, Utility x1 9240 | -4/Factory | Build established: Hacker-Gladiator 9505 | -4/Factory | Repaired Force Field 9529 | -4/Factory | Repaired Arm. Huge Wheel 9642 | -4/Factory | Lost 3 parts (1n1u1w) 10013 | -4/Factory | Build established: Gladiator 10356 | -4/Factory | Found Prototype Hackware 11014 | -4/Factory | Repaired Force Field 11065 | -4/Factory | Garrison activated, responded to threat 11663 | -4/Factory | Discovered new exit (range 13) 11853 | -4/Factory | System corruption reached 10% 11858 | -4/Factory | Lost 8 parts (1p2n5u) 11893 | -4/Factory | Entered Research 11893 | -3/Research | Evolved 2 slots: Propulsion x1, Utility x1 13012 | -3/Research | Spotted B-86 Titan 13186 | -3/Research | Destroyed B-86 Titan 13207 | -3/Research | Core integrity fell below 50% 13245 | -3/Research | Core integrity fell below 20% 13250 | -3/Research | Destroyed by G-67 Veteran with Field Laser Last Messages --------------- 13239_ E-15 Imp unfolds itself. 13240_ C-30 ARC bursts open, deploying its payload. 13240_ G-73 Enforcer unfolds itself. 13240_ L-61 Swordsman unfolds itself. 13240_ G-67 Veteran unfolds itself. 13242_ Force Lance destroyed. 13244_ Critical hit (Burn: +50). 13244_ Thunder Hammer destroyed. 13244_ Core Analyzer destroyed. 13245_ Critical hit (Burn: +50). 13245_ U-05 Engineer lays Concrete. 13245_ Adv. Coolant Injector blown off. 13245_ Force Lance blown off. 13245_ Adv. Target Analyzer blown off. 13245_ Imp. Target Analyzer blown off. 13245_ E-15 Imp destroyed. 13246_ U-05 Engineer lays Concrete. 13248_ Dropped Hcp. Storage Unit. 13248_ U-05 Engineer lays Concrete. Map ----- +----------------------------------------------------+ | ?????????????????????????????????? | | ?????????????????????????????????? | | ?????????????????????????????????? | | ?????????????????????????????????? | | ?????????????????????????????????? | | ?????????????????????????????????? | | ?????????????????????????????????? | | ?????????????????????????????????? | | ?????????????????????????????????? | | ?????????????????????????????????? | | ?????????????????????? ?????????? | | ?????????????????????? ?????????? | | ?????????????????????? ?????????? | | ?????????????????????# ?????????? | | ????????????????????? l ?????????? | | ?????????????????????#l ?????????? | | ?????????? ????????# i?????????? | | ?????????? ? ??#g ?????????? | | ????????? " ??#g#??######## | | ????????? "%" ! #?#g#??# # | | ???????? %! ?#g#??# # | | ?????? u =#%#??# *" # | | ????? g ###]#### !"" # | | ????? gggg%==*!#%%=! # | | ???? u g]*!%|!#% "" # | | ???? !g%[[!*@/% # | | ??? u%=![!%[#![ * # | | ??? /==*|!%#= =% %# | | ?? !=!%=%*# ==! %# | | ?? =[= # ==! # | | ?? #%=! # | | ? #! # | | ? ######## | | # ##########??????? | | # #???????????????? | | # #???????????????? | | # ]= ####h#???????????????? | | # ]= ????#h##############??? | | # ] ?????# + #??? | | # ???????# # #??? | | + ????????# # """""" #??? | | # #?????????# # """""" #??? | | # ###########+# """""" #??? | | # # # #??? | | # % = # #??? | | # # """""" #??? | | # # """""" #??? | | + # """""" #??? | | # # """ """ # #??? | | # # """G""" # #??? | +----------------------------------------------------+ Best States ------------- Heat Dissipation 54 Coolant Potential 100 Energy Generation 43 Energy Capacity 540 Matter Stores 300 Matter Capacity 300 Sight Range 20 Robot Scan Range 14 Terrain Scan Density 210 Jamming Range 12 Armor Coverage 600 Resistance: KI 20 Melee Speed Boost 20 Phase Shifting 10 Evasion (%) 55 Targeting Accuracy 20 Melee Accuracy 14 Target Analysis 11 Core Analysis 6 Recoil Reduction 2 Particle Charging 15 Force Boost 30 Offensive Hacking 28 Item Schematics ----------------- Hvy. Flail | -9/Materials | Scanalyzed Robot Schematics ------------------ None Fabricated ------------ Nothing Repaired ---------- Heat Sink | 20% | -9/Materials Hvy. Flail | 66% | -9/Materials Arm. Huge Wheel | 7% | -5/Factory Hvy. Deuterium Engine | 26% | -5/Factory Force Field | 36% | -4/Factory Arm. Huge Wheel | 22% | -4/Factory Force Field | 36% | -4/Factory Alien Tech Used ----------------- None Achievements -------------- Part-time Excavator Challenges ------------ None Game ------ Seed ReactionInsulationAxe Manual? 0 Play Time 02:15:28 Cumulative 78.0 hours Start 2025.05.27 @ 15:05:20 End 2025.05.27 @ 17:21:33 Sessions 1 Manual Loads 0 Difficulty Rogue Special Mode None Game No. 55 Rogue 55 Adventurer 0 Explorer 0 Win Type - Total 0 Types 0/0/0/0/0/0/0/0/0/0 Lore% 55 Gallery% 44 Achievement% 39 Wizard Run 0 Options --------- Layout 1 ASCII 0 Keyboard 0 Movement Mouse Keybinds 0 Fullscreen 1 Font 24/Smallcaps Map View 50x35 Zoom Use 0% Tactical HUD 1 Map Filters NONE Filters NONE Steam 1 RUN: 84124ab8-b1b9-45ca-8140-4d85184af94b